[Event "Snabb-SM för veteraner, 50+ 2019"]
[Site "Schackcentrum, Vegagatan 20, Gothenburg, Sweden"]
[Date "2019.10.06"]
[Round "10.2"]
[White "Holst, Conny"]
[Black "Eriksson, Kristian"]
[Result "1/2-1/2"]
[TimeControl "15 minutes + 10 seconds per move from move one"]
[WhiteFideId "1701428"]
[BlackFideId "1705172"]
[WhiteElo "2166"]
[BlackElo "2025"]

1. d4 {[%clk 00:15:16]} {[%emt 00:00:03]} Nf6 {[%clk 00:15:17]} {[%emt
00:00:03]} 2. c4 {[%clk 00:15:23]} {[%emt 00:00:04]} e6 {[%clk 00:15:25]}
{[%emt 00:00:02]} 3. Nc3 {[%clk 00:15:31]} {[%emt 00:00:02]} Bb4 {[%clk
00:15:33]} {[%emt 00:00:02]} 4. e3 {[%clk 00:15:39]} {[%emt 00:00:02]} c5
{[%clk 00:15:38]} {[%emt 00:00:05]} 5. Bd3 {[%clk 00:15:46]} {[%emt 00:00:03]}
Nc6 {[%clk 00:15:41]} {[%emt 00:00:07]} 6. Nf3 {[%clk 00:15:02]} {[%emt
00:00:54]} Bxc3+ {[%clk 00:15:33]} {[%emt 00:00:17]} 7. bxc3 {[%clk 00:15:10]}
{[%emt 00:00:02]} d6 {[%clk 00:15:36]} {[%emt 00:00:08]} 8. O-O {[%clk
00:14:20]} {[%emt 00:01:01]} e5 {[%clk 00:15:19]} {[%emt 00:00:27]} 9. d5
{[%clk 00:14:17]} {[%emt 00:00:13]} Ne7 {[%clk 00:15:18]} {[%emt 00:00:09]} 10.
Ng5 {[%clk 00:12:53]} {[%emt 00:01:35]} h6 {[%clk 00:14:26]} {[%emt 00:01:02]}
11. Ne4 {[%clk 00:12:51]} {[%emt 00:00:12]} Nxe4 {[%clk 00:13:26]} {[%emt
00:01:10]} 12. Bxe4 {[%clk 00:12:59]} {[%emt 00:00:02]} f5 {[%clk 00:12:10]}
{[%emt 00:01:26]} 13. Bd3 {[%clk 00:12:24]} {[%emt 00:00:45]} O-O {[%clk
00:12:02]} {[%emt 00:00:18]} 14. f4 {[%clk 00:12:06]} {[%emt 00:00:28]} e4
{[%clk 00:11:07]} {[%emt 00:01:05]} 15. Be2 {[%clk 00:11:58]} {[%emt 00:00:18]}
Bd7 {[%clk 00:10:32]} {[%emt 00:00:46]} 16. Bd2 {[%clk 00:10:37]} {[%emt
00:01:31]} Be8 {[%clk 00:09:52]} {[%emt 00:00:50]} 17. Be1 {[%clk 00:10:03]}
{[%emt 00:00:44]} Bg6 {[%clk 00:09:14]} {[%emt 00:00:48]} 18. Bh4 {[%clk
00:09:51]} {[%emt 00:00:22]} Qd7 {[%clk 00:08:47]} {[%emt 00:00:38]} 19. Bxe7
{[%clk 00:09:56]} {[%emt 00:00:05]} Qxe7 {[%clk 00:08:55]} {[%emt 00:00:02]} 20.
Rb1 {[%clk 00:09:38]} {[%emt 00:00:27]} Qc7 {[%clk 00:07:58]} {[%emt 00:01:07]}
21. h3 {[%clk 00:08:48]} {[%emt 00:01:00]} b6 {[%clk 00:07:36]} {[%emt
00:00:32]} 22. Kh2 {[%clk 00:08:49]} {[%emt 00:00:09]} Qe7 {[%clk 00:07:30]}
{[%emt 00:00:16]} 23. Qe1 {[%clk 00:08:14]} {[%emt 00:00:46]} Qf6 {[%clk
00:07:11]} {[%emt 00:00:29]} 24. g4 {[%clk 00:07:38]} {[%emt 00:00:46]} Kf7
{[%clk 00:06:29]} {[%emt 00:00:51]} 25. Rg1 {[%clk 00:06:52]} {[%emt 00:00:56]}
Rg8 {[%clk 00:05:37]} {[%emt 00:01:02]} 26. a4 {[%clk 00:06:58]} {[%emt
00:00:04]} Rab8 {[%clk 00:05:15]} {[%emt 00:00:31]} 27. Rb3 {[%clk 00:05:56]}
{[%emt 00:01:11]} Ke7 {[%clk 00:04:44]} {[%emt 00:00:42]} 28. Qg3 {[%clk
00:05:48]} {[%emt 00:00:18]} Kd7 {[%clk 00:04:20]} {[%emt 00:00:34]} 29. Rgb1
{[%clk 00:05:42]} {[%emt 00:00:16]} Kc7 {[%clk 00:04:22]} {[%emt 00:00:09]} 30.
gxf5 {[%clk 00:05:35]} {[%emt 00:00:16]} Bxf5 {[%clk 00:04:24]} {[%emt
00:00:08]} 31. Bg4 {[%clk 00:05:43]} {[%emt 00:00:03]} g6 {[%clk 00:04:18]}
{[%emt 00:00:15]} 32. Rg1 {[%clk 00:05:30]} {[%emt 00:00:23]} a5 {[%clk
00:03:29]} {[%emt 00:00:59]} 33. Bxf5 {[%clk 00:04:49]} {[%emt 00:00:51]} Qxf5
{[%clk 00:03:37]} {[%emt 00:00:03]} 34. Qg4 {[%clk 00:04:57]} {[%emt 00:00:01]}
Qf6 {[%clk 00:03:16]} {[%emt 00:00:31]} 35. Ra3 {[%clk 00:04:08]} {[%emt
00:01:00]} Rbf8 {[%clk 00:03:13]} {[%emt 00:00:13]} 36. Ra2 {[%clk 00:03:28]}
{[%emt 00:00:50]} Qxc3 {[%clk 00:02:46]} {[%emt 00:00:36]} 37. Qe6 {[%clk
00:03:13]} {[%emt 00:00:25]} Qxe3 {[%clk 00:01:56]} {[%emt 00:01:00]} 38. Qe7+
{[%clk 00:03:22]} {[%emt 00:00:01]} Kc8 {[%clk 00:02:02]} {[%emt 00:00:05]} 39.
Qe6+ {[%clk 00:03:31]} Kc7 {[%clk 00:02:08]} {[%emt 00:00:04]} 40. Qe7+ {[%clk
00:03:40]} Kc8 {[%clk 00:02:17]} 41. Qe6+ {[%clk 00:03:50]} 1/2-1/2

[Event "Snabb-SM för veteraner, 50+ 2019"]
[Site "Schackcentrum, Vegagatan 20, Gothenburg, Sweden"]
[Date "2019.10.06"]
[Round "10.3"]
[White "Svensson, Sven"]
[Black "Angskog, Kent"]
[Result "0-1"]
[TimeControl "15 minutes + 10 seconds per move from move one"]
[WhiteFideId "1709240"]
[BlackFideId "1703668"]
[WhiteElo "2158"]
[BlackElo "2136"]

1. d4 {[%clk 00:15:18]} d6 {[%clk 00:15:16]} {[%emt 00:00:05]} 2. Nf3 {[%clk
00:15:26]} {[%emt 00:00:03]} Nf6 {[%clk 00:15:24]} {[%emt 00:00:02]} 3. c4
{[%clk 00:15:33]} {[%emt 00:00:03]} Bg4 {[%clk 00:15:32]} {[%emt 00:00:02]} 4.
Nc3 {[%clk 00:15:40]} {[%emt 00:00:03]} Nc6 {[%clk 00:15:35]} {[%emt 00:00:06]}
5. Bg5 {[%clk 00:14:50]} {[%emt 00:01:01]} e6 {[%clk 00:12:40]} {[%emt
00:03:04]} 6. e3 {[%clk 00:14:42]} {[%emt 00:00:19]} Be7 {[%clk 00:12:43]}
{[%emt 00:00:06]} 7. Be2 {[%clk 00:14:50]} {[%emt 00:00:03]} O-O {[%clk
00:12:41]} {[%emt 00:00:11]} 8. O-O {[%clk 00:14:57]} {[%emt 00:00:04]} Nd7
{[%clk 00:11:54]} {[%emt 00:00:57]} 9. Bxe7 {[%clk 00:14:32]} {[%emt 00:00:34]}
Qxe7 {[%clk 00:11:55]} {[%emt 00:00:09]} 10. h3 {[%clk 00:14:33]} {[%emt
00:00:09]} Bh5 {[%clk 00:11:45]} {[%emt 00:00:20]} 11. a3 {[%clk 00:13:03]}
{[%emt 00:01:41]} Nb6 {[%clk 00:11:08]} {[%emt 00:00:46]} 12. Nd2 {[%clk
00:10:20]} {[%emt 00:02:54]} Bxe2 {[%clk 00:10:33]} {[%emt 00:00:45]} 13. Qxe2
{[%clk 00:10:28]} {[%emt 00:00:02]} a5 {[%clk 00:10:24]} {[%emt 00:00:18]} 14.
b3 {[%clk 00:10:14]} {[%emt 00:00:25]} f5 {[%clk 00:09:36]} {[%emt 00:00:58]}
15. f4 {[%clk 00:08:10]} {[%emt 00:02:14]} e5 {[%clk 00:07:09]} {[%emt
00:02:37]} 16. Nd5 {[%clk 00:05:26]} {[%emt 00:02:55]} Nxd5 {[%clk 00:06:27]}
{[%emt 00:00:51]} 17. cxd5 {[%clk 00:05:34]} {[%emt 00:00:02]} Nd8 {[%clk
00:06:15]} {[%emt 00:00:22]} 18. dxe5 {[%clk 00:05:28]} {[%emt 00:00:17]} dxe5
{[%clk 00:06:22]} {[%emt 00:00:03]} 19. Qc4 {[%clk 00:05:35]} {[%emt 00:00:02]}
Nf7 {[%clk 00:05:57]} {[%emt 00:00:36]} 20. Nf3 {[%clk 00:04:05]} {[%emt
00:01:41]} Nd6 {[%clk 00:05:15]} {[%emt 00:00:50]} 21. Qc3 {[%clk 00:03:47]}
{[%emt 00:00:28]} exf4 {[%clk 00:04:21]} {[%emt 00:01:05]} 22. exf4 {[%clk
00:03:55]} {[%emt 00:00:02]} Ne4 {[%clk 00:04:23]} {[%emt 00:00:08]} 23. Qe5
{[%clk 00:03:11]} {[%emt 00:00:55]} Qc5+ {[%clk 00:04:19]} {[%emt 00:00:13]} 24.
Qd4 {[%clk 00:03:19]} {[%emt 00:00:01]} Rad8 {[%clk 00:03:34]} {[%emt
00:00:56]} 25. Rac1 {[%clk 00:01:26]} {[%emt 00:02:03]} Qxd4+ {[%clk 00:03:21]}
{[%emt 00:00:22]} 26. Nxd4 {[%clk 00:01:35]} {[%emt 00:00:02]} Rxd5 {[%clk
00:03:17]} {[%emt 00:00:13]} 27. Ne6 {[%clk 00:01:34]} {[%emt 00:00:11]} Rf7
{[%clk 00:02:57]} {[%emt 00:00:30]} 28. Nxc7 {[%clk 00:01:34]} {[%emt
00:00:10]} Rd3 {[%clk 00:02:23]} {[%emt 00:00:44]} 29. Ne6 {[%clk 00:01:31]}
{[%emt 00:00:13]} Re7 {[%clk 00:01:57]} {[%emt 00:00:36]} 0-1

[Event "Snabb-SM för veteraner, 50+ 2019"]
[Site "Schackcentrum, Vegagatan 20, Gothenburg, Sweden"]
[Date "2019.10.06"]
[Round "10.4"]
[White "Hautajarvi, Jukka"]
[Black "Andreasson, Ingvar"]
[Result "0-1"]
[TimeControl "15 minutes + 10 seconds per move from move one"]
[WhiteFideId "1716190"]
[BlackFideId "1700294"]
[WhiteElo "2145"]
[BlackElo "2413"]

1. Nf3 {[%clk 00:15:17]} {[%emt 00:00:02]} d6 {[%clk 00:14:56]} {[%emt
00:00:25]} 2. e4 {[%clk 00:15:21]} {[%emt 00:00:06]} Nf6 {[%clk 00:15:00]}
{[%emt 00:00:06]} 3. Nc3 {[%clk 00:15:29]} {[%emt 00:00:02]} g6 {[%clk
00:15:08]} {[%emt 00:00:01]} 4. h3 {[%clk 00:15:33]} {[%emt 00:00:06]} c5
{[%clk 00:15:04]} {[%emt 00:00:15]} 5. Bc4 {[%clk 00:15:40]} {[%emt 00:00:03]}
Bg7 {[%clk 00:15:09]} {[%emt 00:00:04]} 6. d3 {[%clk 00:15:48]} {[%emt
00:00:02]} O-O {[%clk 00:15:10]} {[%emt 00:00:09]} 7. O-O {[%clk 00:15:56]}
{[%emt 00:00:02]} Nc6 {[%clk 00:14:59]} {[%emt 00:00:22]} 8. Re1 {[%clk
00:15:49]} {[%emt 00:00:17]} Nd7 {[%clk 00:13:58]} {[%emt 00:01:10]} 9. Bb3
{[%clk 00:15:22]} {[%emt 00:00:38]} Rb8 {[%clk 00:13:43]} {[%emt 00:00:25]} 10.
Bf4 {[%clk 00:14:34]} {[%emt 00:00:57]} b5 {[%clk 00:12:38]} {[%emt 00:01:15]}
11. Qd2 {[%clk 00:13:28]} {[%emt 00:01:16]} Nd4 {[%clk 00:11:57]} {[%emt
00:00:52]} 12. Nxd4 {[%clk 00:13:31]} {[%emt 00:00:07]} cxd4 {[%clk 00:12:04]}
{[%emt 00:00:02]} 13. Ne2 {[%clk 00:13:30]} {[%emt 00:00:12]} Nc5 {[%clk
00:11:10]} {[%emt 00:01:03]} 14. Bh6 {[%clk 00:13:04]} {[%emt 00:00:36]} e5
{[%clk 00:11:00]} {[%emt 00:00:21]} 15. Bxg7 {[%clk 00:12:41]} {[%emt
00:00:33]} Kxg7 {[%clk 00:11:08]} {[%emt 00:00:02]} 16. c3 {[%clk 00:12:45]}
{[%emt 00:00:06]} dxc3 {[%clk 00:10:24]} {[%emt 00:00:54]} 17. bxc3 {[%clk
00:12:53]} {[%emt 00:00:02]} f5 {[%clk 00:08:39]} {[%emt 00:01:54]} 18. Ng3
{[%clk 00:11:58]} {[%emt 00:01:05]} f4 {[%clk 00:08:42]} {[%emt 00:00:08]} 19.
Nf1 {[%clk 00:12:06]} {[%emt 00:00:03]} f3 {[%clk 00:07:50]} {[%emt 00:01:02]}
20. Re3 {[%clk 00:12:13]} {[%emt 00:00:02]} fxg2 {[%clk 00:07:51]} {[%emt
00:00:09]} 21. Kxg2 {[%clk 00:12:20]} {[%emt 00:00:03]} Rf4 {[%clk 00:07:16]}
{[%emt 00:00:45]} 22. Rg3 {[%clk 00:12:02]} {[%emt 00:00:28]} Bb7 {[%clk
00:06:24]} {[%emt 00:01:02]} 23. f3 {[%clk 00:11:32]} {[%emt 00:00:40]} Qf6
{[%clk 00:04:47]} {[%emt 00:01:47]} 24. Ne3 {[%clk 00:11:18]} {[%emt 00:00:25]}
Rf8 {[%clk 00:04:49]} {[%emt 00:00:07]} 25. Bd5 {[%clk 00:11:23]} {[%emt
00:00:06]} Rxf3 {[%clk 00:04:36]} {[%emt 00:00:23]} 26. Ng4 {[%clk 00:09:04]}
{[%emt 00:02:29]} Rxg3+ {[%clk 00:04:06]} {[%emt 00:00:40]} 27. Kxg3 {[%clk
00:09:11]} {[%emt 00:00:01]} Qf4+ {[%clk 00:03:32]} {[%emt 00:00:46]} 28. Qxf4
{[%clk 00:09:19]} {[%emt 00:00:02]} exf4+ {[%clk 00:03:40]} {[%emt 00:00:01]}
29. Kf3 {[%clk 00:09:27]} {[%emt 00:00:02]} Bxd5 {[%clk 00:03:48]} {[%emt
00:00:02]} 30. exd5 {[%clk 00:09:36]} {[%emt 00:00:02]} Nxd3 {[%clk 00:03:50]}
{[%emt 00:00:08]} 31. a4 {[%clk 00:09:44]} {[%emt 00:00:02]} h5 {[%clk
00:03:39]} {[%emt 00:00:21]} 32. Nh2 {[%clk 00:09:12]} {[%emt 00:00:41]} Ne5+
{[%clk 00:02:06]} {[%emt 00:01:43]} 33. Ke4 {[%clk 00:09:05]} {[%emt 00:00:18]}
Rc8 {[%clk 00:02:07]} {[%emt 00:00:09]} 34. Kxf4 {[%clk 00:07:53]} {[%emt
00:01:21]} Rc4+ {[%clk 00:02:06]} {[%emt 00:00:12]} 35. Ke3 {[%clk 00:07:55]}
{[%emt 00:00:07]} Rxc3+ {[%clk 00:02:09]} {[%emt 00:00:07]} 36. Kd2 {[%clk
00:08:01]} {[%emt 00:00:04]} b4 {[%clk 00:02:18]} {[%emt 00:00:01]} 0-1

[Event "Snabb-SM för veteraner, 50+ 2019"]
[Site "Schackcentrum, Vegagatan 20, Gothenburg, Sweden"]
[Date "2019.10.06"]
[Round "10.5"]
[White "Andersson, Johan"]
[Black "Madebrink, Lars"]
[Result "1-0"]
[TimeControl "15 minutes + 10 seconds per move from move one"]
[WhiteFideId "1703935"]
[BlackFideId "1701347"]
[WhiteElo "2152"]
[BlackElo "2179"]

1. e4 {[%clk 00:15:16]} {[%emt 00:00:03]} e5 {[%clk 00:15:20]} 2. Nf3 {[%clk
00:15:24]} {[%emt 00:00:02]} Nc6 {[%clk 00:15:29]} 3. c3 {[%clk 00:15:31]}
{[%emt 00:00:04]} d5 {[%clk 00:15:15]} {[%emt 00:00:23]} 4. Qa4 {[%clk
00:15:38]} {[%emt 00:00:03]} f6 {[%clk 00:12:59]} {[%emt 00:02:27]} 5. Bb5
{[%clk 00:15:45]} {[%emt 00:00:03]} Qd6 {[%clk 00:12:31]} {[%emt 00:00:37]} 6.
exd5 {[%clk 00:15:28]} {[%emt 00:00:27]} Qxd5 {[%clk 00:12:31]} {[%emt
00:00:10]} 7. d4 {[%clk 00:15:25]} {[%emt 00:00:12]} Bd7 {[%clk 00:11:58]}
{[%emt 00:00:44]} 8. O-O {[%clk 00:12:36]} {[%emt 00:02:59]} e4 {[%clk
00:09:12]} {[%emt 00:02:56]} 9. c4 {[%clk 00:11:38]} {[%emt 00:01:08]} Qf5
{[%clk 00:07:52]} {[%emt 00:01:29]} 10. Re1 {[%clk 00:05:30]} {[%emt 00:06:20]}
O-O-O {[%clk 00:07:54]} {[%emt 00:00:08]} 11. Nh4 {[%clk 00:04:28]} {[%emt
00:01:10]} Qg4 {[%clk 00:07:39]} {[%emt 00:00:25]} 12. d5 {[%clk 00:04:17]}
{[%emt 00:00:21]} Nb8 {[%clk 00:06:13]} {[%emt 00:01:37]} 13. Bxd7+ {[%clk
00:04:05]} {[%emt 00:00:23]} Rxd7 {[%clk 00:06:13]} {[%emt 00:00:09]} 14. g3
{[%clk 00:03:52]} {[%emt 00:00:22]} Bc5 {[%clk 00:05:56]} {[%emt 00:00:28]} 15.
Nc3 {[%clk 00:03:57]} {[%emt 00:00:06]} f5 {[%clk 00:05:44]} {[%emt 00:00:21]}
16. Ng2 {[%clk 00:03:41]} {[%emt 00:00:25]} Nf6 {[%clk 00:05:43]} {[%emt
00:00:12]} 17. Nf4 {[%clk 00:03:40]} {[%emt 00:00:11]} g5 {[%clk 00:03:54]}
{[%emt 00:01:58]} 18. Ne6 {[%clk 00:03:36]} {[%emt 00:00:15]} Qh3 {[%clk
00:03:35]} {[%emt 00:00:28]} 19. Nxg5 {[%clk 00:03:12]} {[%emt 00:00:34]} Bxf2+
{[%clk 00:03:13]} {[%emt 00:00:33]} 20. Kh1 {[%clk 00:02:36]} {[%emt 00:00:44]}
Qh5 {[%clk 00:03:00]} {[%emt 00:00:23]} 21. Re2 {[%clk 00:01:55]} {[%emt
00:00:52]} Ng4 {[%clk 00:02:40]} {[%emt 00:00:30]} 22. h3 {[%clk 00:01:52]}
{[%emt 00:00:12]} Bxg3 {[%clk 00:02:30]} {[%emt 00:00:21]} 23. Kg2 {[%clk
00:01:53]} {[%emt 00:00:08]} Be5 {[%clk 00:02:25]} {[%emt 00:00:14]} 24. hxg4
{[%clk 00:01:17]} {[%emt 00:00:47]} Qxg4+ {[%clk 00:02:34]} {[%emt 00:00:02]}
25. Kf1 {[%clk 00:01:23]} {[%emt 00:00:03]} Bf4 {[%clk 00:01:56]} {[%emt
00:00:49]} 26. Rg2 {[%clk 00:01:26]} {[%emt 00:00:06]} Qh4 {[%clk 00:01:57]}
{[%emt 00:00:09]} 27. Qc2 {[%clk 00:01:12]} {[%emt 00:00:24]} h6 {[%clk
00:01:37]} {[%emt 00:00:30]} 28. Ne6 {[%clk 00:01:15]} {[%emt 00:00:07]} e3
{[%clk 00:01:09]} {[%emt 00:00:38]} 29. Qe2 {[%clk 00:01:09]} {[%emt 00:00:16]}
Qh1+ {[%clk 00:00:42]} {[%emt 00:00:37]} 30. Rg1 {[%clk 00:01:17]} {[%emt
00:00:02]} Qh3+ {[%clk 00:00:39]} {[%emt 00:00:14]} 31. Qg2 {[%clk 00:01:23]}
{[%emt 00:00:03]} Qxg2+ {[%clk 00:00:45]} {[%emt 00:00:04]} 32. Rxg2 {[%clk
00:01:30]} {[%emt 00:00:03]} Bg5 {[%clk 00:00:55]} 33. Nxg5 {[%clk 00:01:33]}
{[%emt 00:00:08]} hxg5 {[%clk 00:01:04]} {[%emt 00:00:01]} 34. Bxe3 {[%clk
00:01:40]} {[%emt 00:00:02]} f4 {[%clk 00:01:07]} {[%emt 00:00:07]} 35. Bd4
{[%clk 00:01:38]} {[%emt 00:00:12]} Rh1+ {[%clk 00:01:09]} {[%emt 00:00:09]} 36.
Rg1 {[%clk 00:01:39]} {[%emt 00:00:08]} Rdh7 {[%clk 00:01:18]} {[%emt
00:00:02]} 37. Re1 {[%clk 00:01:36]} {[%emt 00:00:13]} Kd7 {[%clk 00:01:17]}
{[%emt 00:00:11]} 38. Re5 {[%clk 00:01:25]} {[%emt 00:00:20]} g4 {[%clk
00:01:24]} {[%emt 00:00:03]} 39. Rg5 {[%clk 00:01:22]} {[%emt 00:00:12]} g3
{[%clk 00:01:32]} {[%emt 00:00:03]} 40. Ne4 {[%clk 00:01:24]} {[%emt 00:00:08]}
R7h2 {[%clk 00:01:14]} {[%emt 00:00:27]} 41. Rg7+ {[%clk 00:01:25]} {[%emt
00:00:10]} Ke8 {[%clk 00:01:21]} 42. Nf6+ {[%clk 00:01:30]} {[%emt 00:00:07]}
Kf8 {[%clk 00:01:31]} 43. Ng4 {[%clk 00:01:10]} {[%emt 00:00:30]} Rxg1+ {[%clk
00:01:26]} {[%emt 00:00:16]} 44. Kxg1 {[%clk 00:01:16]} {[%emt 00:00:04]} Rd2
{[%clk 00:01:35]} 45. Bc3 {[%clk 00:01:19]} {[%emt 00:00:08]} Rd3 {[%clk
00:01:37]} {[%emt 00:00:08]} 46. Rh7 {[%clk 00:01:19]} {[%emt 00:00:07]} f3
{[%clk 00:01:45]} {[%emt 00:00:04]} 47. Rh8+ {[%clk 00:01:20]} {[%emt
00:00:09]} Ke7 {[%clk 00:01:53]} {[%emt 00:00:02]} 48. Bb4+ {[%clk 00:01:22]}
{[%emt 00:00:08]} Kf7 {[%clk 00:01:30]} {[%emt 00:00:33]} 49. Ne5+ {[%clk
00:01:31]} {[%emt 00:00:02]} Kg7 {[%clk 00:01:39]} 50. Nxd3 {[%clk 00:01:31]}
{[%emt 00:00:10]} Kxh8 {[%clk 00:01:48]} 51. Ne5 {[%clk 00:01:39]} {[%emt
00:00:02]} f2+ {[%clk 00:01:49]} {[%emt 00:00:09]} 52. Kg2 {[%clk 00:01:47]}
Na6 {[%clk 00:01:58]} {[%emt 00:00:03]} 53. Bc3 {[%clk 00:01:50]} {[%emt
00:00:06]} Kh7 {[%clk 00:02:07]} {[%emt 00:00:01]} 54. Ng4 {[%clk 00:01:49]}
{[%emt 00:00:10]} Nc5 {[%clk 00:02:12]} {[%emt 00:00:06]} 55. Ne3 {[%clk
00:01:54]} {[%emt 00:00:04]} Ne4 {[%clk 00:02:17]} {[%emt 00:00:05]} 56. Be5
{[%clk 00:01:51]} {[%emt 00:00:14]} Nd2 {[%clk 00:02:02]} {[%emt 00:00:25]} 57.
b3 {[%clk 00:01:56]} {[%emt 00:00:06]} Kg6 {[%clk 00:01:59]} {[%emt 00:00:14]}
58. Bxg3 {[%clk 00:01:58]} {[%emt 00:00:07]} c6 {[%clk 00:02:02]} {[%emt
00:00:08]} 59. d6 {[%clk 00:01:57]} {[%emt 00:00:11]} 1-0

[Event "Snabb-SM för veteraner, 50+ 2019"]
[Site "Schackcentrum, Vegagatan 20, Gothenburg, Sweden"]
[Date "2019.10.06"]
[Round "10.6"]
[White "Bergre, Joachim"]
[Black "Naslund, Mikael"]
[Result "1-0"]
[TimeControl "15 minutes + 10 seconds per move from move one"]
[BlackTitle "FM"]
[WhiteFideId "1704893"]
[BlackFideId "1708260"]
[WhiteElo "2035"]
[BlackElo "2076"]

1. Nf3 {[%clk 00:14:54]} {[%emt 00:00:25]} Nf6 {[%clk 00:15:15]} {[%emt
00:00:06]} 2. c4 {[%clk 00:15:01]} {[%emt 00:00:03]} e6 {[%clk 00:15:20]}
{[%emt 00:00:05]} 3. b3 {[%clk 00:14:46]} {[%emt 00:00:25]} b6 {[%clk
00:15:20]} {[%emt 00:00:11]} 4. g3 {[%clk 00:14:49]} {[%emt 00:00:06]} Bb7
{[%clk 00:15:28]} {[%emt 00:00:02]} 5. Bg2 {[%clk 00:14:57]} Be7 {[%clk
00:15:17]} {[%emt 00:00:22]} 6. Bb2 {[%clk 00:15:02]} {[%emt 00:00:05]} O-O
{[%clk 00:15:00]} {[%emt 00:00:26]} 7. O-O {[%clk 00:14:31]} {[%emt 00:00:40]}
d5 {[%clk 00:14:43]} {[%emt 00:00:29]} 8. cxd5 {[%clk 00:14:19]} {[%emt
00:00:22]} exd5 {[%clk 00:14:33]} {[%emt 00:00:20]} 9. d4 {[%clk 00:13:57]}
{[%emt 00:00:31]} c5 {[%clk 00:14:24]} {[%emt 00:00:20]} 10. Nc3 {[%clk
00:12:44]} {[%emt 00:01:23]} Nc6 {[%clk 00:14:22]} {[%emt 00:00:12]} 11. Rc1
{[%clk 00:12:29]} {[%emt 00:00:25]} Rc8 {[%clk 00:11:50]} {[%emt 00:02:42]} 12.
Bh3 {[%clk 00:11:56]} {[%emt 00:00:43]} Rb8 {[%clk 00:11:45]} {[%emt 00:00:15]}
13. e3 {[%clk 00:11:00]} {[%emt 00:01:06]} a6 {[%clk 00:11:03]} {[%emt
00:00:53]} 14. dxc5 {[%clk 00:10:41]} {[%emt 00:00:29]} bxc5 {[%clk 00:08:18]}
{[%emt 00:02:55]} 15. Na4 {[%clk 00:10:37]} {[%emt 00:00:14]} Ne4 {[%clk
00:07:54]} {[%emt 00:00:33]} 16. Nd2 {[%clk 00:10:13]} {[%emt 00:00:34]} Ng5
{[%clk 00:05:35]} {[%emt 00:02:29]} 17. Bg2 {[%clk 00:10:18]} {[%emt 00:00:05]}
Ne6 {[%clk 00:05:44]} {[%emt 00:00:02]} 18. Nb1 {[%clk 00:09:27]} {[%emt
00:01:01]} d4 {[%clk 00:04:49]} {[%emt 00:01:05]} 19. e4 {[%clk 00:09:04]}
{[%emt 00:00:33]} Qa5 {[%clk 00:02:48]} {[%emt 00:02:10]} 20. Na3 {[%clk
00:07:43]} {[%emt 00:01:31]} f5 {[%clk 00:02:03]} {[%emt 00:00:56]} 21. Nc4
{[%clk 00:07:35]} {[%emt 00:00:18]} Qd8 {[%clk 00:02:03]} {[%emt 00:00:09]} 22.
exf5 {[%clk 00:06:40]} {[%emt 00:01:06]} Rxf5 {[%clk 00:02:10]} {[%emt
00:00:03]} 23. Qd3 {[%clk 00:05:05]} {[%emt 00:01:44]} Rf8 {[%clk 00:01:52]}
{[%emt 00:00:28]} 24. a3 {[%clk 00:04:45]} {[%emt 00:00:30]} Na5 {[%clk
00:01:11]} {[%emt 00:00:50]} 25. Bxb7 {[%clk 00:04:38]} {[%emt 00:00:18]} Rxb7
{[%clk 00:01:17]} {[%emt 00:00:04]} 26. Nxa5 {[%clk 00:04:36]} {[%emt
00:00:12]} Qxa5 {[%clk 00:01:26]} {[%emt 00:00:01]} 27. Qe4 {[%clk 00:04:42]}
{[%emt 00:00:03]} Rb6 {[%clk 00:01:11]} {[%emt 00:00:26]} 28. Nxb6 {[%clk
00:04:41]} {[%emt 00:00:11]} Qxb6 {[%clk 00:01:19]} {[%emt 00:00:01]} 29. Rce1
{[%clk 00:04:42]} {[%emt 00:00:09]} Ng5 {[%clk 00:00:38]} {[%emt 00:00:51]} 30.
Qxe7 {[%clk 00:04:23]} {[%emt 00:00:29]} Nf3+ {[%clk 00:00:16]} {[%emt
00:00:32]} 31. Kg2 {[%clk 00:04:24]} {[%emt 00:00:09]} Qc6 {[%clk 00:00:23]}
{[%emt 00:00:04]} 32. Qe6+ {[%clk 00:04:33]} {[%emt 00:00:01]} 1-0